bitfinex/quotes_SOLUSD_20250611
["timestamp","ask_amount","ask_price","bid_price","bid_amount"]
[1749671280380,14.46245834,162.82,162.78,14.46245834]
[1749671281790,0.28432314,162.81,162.77,14.46245834]
[1749671282097,14.46245834,162.81,162.77,14.46245834]
[1749671282574,0.28432314,162.82,162.77,14.46245834]
[1749671282575,14.74678148,162.82,162.77,14.46245834]
[1749671282974,25.86,162.85,162.76,5.86]
[1749671283172,25.86,162.85,162.78,14.46245834]
[1749671283173,14.46245834,162.83,162.78,14.46245834]
[1749671283390,14.46245834,162.82,162.78,14.46245834]
[1749671283790,26.28432314,162.84,162.77,14.46245834]
[1749671283791,14.46245834,162.81,162.77,14.46245834]
[1749671283986,14.46245834,162.81,162.76,20.32245834]
[1749671284303,14.46245834,162.8,162.76,5.86]
[1749671284887,0.28432314,162.81,162.76,20.32245834]
[1749671285083,14.74678148,162.81,162.76,20.32245834]
[1749671285276,14.46245834,162.8,162.76,20.32245834]
[1749671285591,0.28432314,162.79,162.76,5.86]
[1749671285795,14.46245834,162.78,162.73,14.46245834]
[1749671287202,26.14432314,162.8,162.73,14.46245834]
[1749671287399,26.14432314,162.8,162.7,6.14627581]
[1749671287400,14.46245834,162.79,162.74,14.46245834]
[1749671287605,14.46245834,162.78,162.74,14.46245834]
[1749671287791,26.14432314,162.8,162.74,14.46245834]
[1749671287990,14.46245834,162.78,162.74,14.46245834]
[1749671288597,14.46245834,162.78,162.7,6.14627581]
[1749671288810,14.46245834,162.78,162.74,14.46245834]
[1749671289185,14.46245834,162.78,162.73,14.46245834]
[1749671289800,14.46245834,162.78,162.74,14.46245834]
[1749671290493,14.46245834,162.78,162.73,14.46245834]
[1749671291393,26.14432314,162.8,162.73,14.46245834]
[1749671291601,14.46245834,162.78,162.73,14.46245834]
[1749671292416,14.46245834,162.79,162.74,14.46245834]
[1749671292615,26.0,162.81,162.77,14.46245834]
[1749671293286,40.46245834,162.81,162.77,14.46245834]
[1749671294886,26.0,162.81,162.77,14.46245834]
[1749671295114,40.46245834,162.81,162.77,14.46245834]
[1749671296000,26.0,162.81,162.77,14.46245834]
[1749671296208,40.46245834,162.81,162.77,14.46245834]
[1749671298309,14.46245834,162.78,162.72,26.0]
[1749671298518,14.46245834,162.77,162.72,26.0]
[1749671298684,14.46245834,162.77,162.73,14.46245834]
[1749671299307,14.46245834,162.78,162.73,14.46245834]
[1749671301012,0.28432314,162.8,162.73,14.46245834]
[1749671301215,14.46245834,162.78,162.73,14.46245834]
[1749671303199,26.0,162.79,162.73,14.46245834]
[1749671303398,14.46245834,162.75,162.69,26.0]
[1749671303698,14.46245834,162.73,162.68,14.46245834]
[1749671304215,14.46245834,162.73,162.69,14.46245834]
[1749671304713,14.46245834,162.73,162.68,14.46245834]
[1749671305398,14.46245834,162.73,162.69,14.46245834]
[1749671305587,14.46245834,162.74,162.69,14.46245834]
[1749671306008,14.46245834,162.74,162.65,6.14811433]
[1749671306206,14.46245834,162.73,162.69,14.46245834]
[1749671306388,14.46245834,162.71,162.64,26.0]
[1749671306591,25.84,162.73,162.61,16.90935492]
[1749671306592,14.46245834,162.7,162.61,16.90935492]
[1749671306994,14.46245834,162.7,162.65,14.46245834]
[1749671307905,14.46245834,162.7,162.66,14.46245834]
[1749671308622,14.46245834,162.7,162.65,14.46245834]
[1749671308923,14.46245834,162.7,162.66,14.46245834]
[1749671309916,14.46245834,162.7,162.62,6.14923477]
[1749671310328,14.46245834,162.7,162.61,37.98958918]
[1749671310523,14.46245834,162.67,162.62,14.46245834]
[1749671311826,0.28432314,162.69,162.63,14.46245834]
[1749671312003,14.46245834,162.68,162.63,14.46245834]
[1749671312523,14.46245834,162.68,162.64,14.46245834]
[1749671312705,14.46245834,162.68,162.61,31.84]
[1749671312906,14.46245834,162.68,162.63,14.46245834]
[1749671313237,14.46245834,162.68,162.61,31.84]
[1749671313406,14.46245834,162.67,162.62,14.46245834]
[1749671315139,14.46245834,162.67,162.61,31.84]
[1749671315348,14.46245834,162.67,162.63,14.46245834]
[1749671315712,14.46245834,162.67,162.61,31.84]
[1749671315935,14.46245834,162.67,162.63,14.46245834]
[1749671316729,14.46245834,162.68,162.64,14.46245834]
[1749671317325,14.74678148,162.69,162.64,14.46245834]
[1749671317724,14.46245834,162.7,162.65,14.46245834]
[1749671318026,14.46245834,162.73,162.68,14.46245834]
[1749671318220,40.32245834,162.73,162.68,14.46245834]
[1749671318617,14.46245834,162.72,162.68,14.46245834]
[1749671319529,14.46245834,162.69,162.63,14.46245834]
[1749671319719,14.46245834,162.67,162.63,14.46245834]
[1749671319921,14.46245834,162.68,162.63,14.46245834]
[1749671320123,14.46245834,162.67,162.62,40.46245834]
[1749671320315,14.46245834,162.67,162.62,14.46245834]
[1749671320709,25.86,162.68,162.62,14.46245834]
[1749671320918,25.86,162.68,162.63,14.46245834]
[1749671320919,14.46245834,162.67,162.63,14.46245834]
[1749671321724,40.32245834,162.68,162.63,14.46245834]
[1749671322337,14.46245834,162.67,162.59,6.15039124]
[1749671322554,14.46245834,162.67,162.63,14.46245834]
[1749671323049,25.86,162.68,162.64,14.46245834]
[1749671323333,40.32245834,162.68,162.63,14.46245834]
[1749671325059,14.46245834,162.67,162.62,14.46245834]
[1749671325838,14.46245834,162.66,162.62,14.46245834]
[1749671326040,25.86,162.68,162.64,14.46245834]
[1749671326215,0.28432314,162.7,162.65,14.46245834]
[1749671326419,25.86,162.69,162.65,14.46245834]
[1749671326622,40.46245834,162.71,162.66,14.46245834]
[1749671326825,25.86,162.7,162.66,14.46245834]
[1749671327443,40.32245834,162.7,162.66,14.46245834]
[1749671329431,25.86,162.7,162.66,14.46245834]
[1749671330527,40.32245834,162.7,162.65,14.46245834]
[1749671331123,26.0,162.71,162.61,26.0]
[1749671331124,26.0,162.71,162.68,14.46245834]
[1749671331317,22.24735834,162.74,162.7,14.46245834]
[1749671331537,48.10735834,162.74,162.7,14.46245834]
[1749671331738,22.24735834,162.74,162.69,14.46245834]
[1749671331946,25.86,162.73,162.69,14.46245834]
[1749671333438,14.46245834,162.7,162.62,1.5683]
[1749671333624,14.46245834,162.67,162.62,14.46245834]
[1749671334330,14.46245834,162.68,162.63,14.46245834]
[1749671334534,14.46245834,162.68,162.63,32.65485096]
[1749671334929,25.84,162.71,162.67,14.46245834]
[1749671335120,25.84,162.71,162.68,14.46245834]
[1749671335316,26.0,162.72,162.69,14.46245834]
[1749671335956,7.7849,162.74,162.7,14.46245834]
[1749671336244,22.24735834,162.74,162.7,14.46245834]
[1749671336432,14.46245834,162.76,162.71,14.46245834]
[1749671336750,25.84,162.77,162.74,14.46245834]
[1749671337253,7.7007,162.78,162.74,14.46245834]
[1749671337556,33.5407,162.78,162.74,14.46245834]
[1749671337763,33.5407,162.78,162.75,14.46245834]
[1749671337926,33.5407,162.78,162.69,24.93832501]
[1749671338250,33.5407,162.78,162.74,14.46245834]
[1749671338457,40.46245834,162.8,162.75,14.46245834]
[1749671338748,40.46245834,162.8,162.69,24.93832501]
[1749671338749,25.84,162.79,162.76,14.46245834]
[1749671338926,14.46245834,162.79,162.69,18.79181043]
[1749671339124,14.46245834,162.79,162.74,14.46245834]
[1749671339332,14.46245834,162.76,162.66,13.7193653]
[1749671339530,40.30245834,162.76,162.71,14.46245834]
[1749671339746,40.30245834,162.76,162.69,26.0]
[1749671340051,40.30245834,162.76,162.71,14.46245834]
[1749671340631,25.84,162.76,162.72,14.46245834]
[1749671341045,25.84,162.76,162.73,14.46245834]
[1749671341240,25.84,162.76,162.69,26.0]
[1749671341429,25.84,162.76,162.73,14.46245834]
[1749671341635,14.46245834,162.77,162.73,14.46245834]
[1749671341830,40.30245834,162.77,162.73,14.46245834]
[1749671342232,40.30245834,162.77,162.69,26.0]
[1749671342434,40.30245834,162.77,162.73,14.46245834]
[1749671343053,25.84,162.77,162.73,14.46245834]
[1749671343249,40.30245834,162.77,162.73,14.46245834]
[1749671343554,25.84,162.77,162.73,14.46245834]
[1749671344954,26.12432314,162.77,162.73,14.46245834]
[1749671345554,14.46245834,162.76,162.69,26.0]
[1749671345761,14.46245834,162.75,162.66,105.94964886]
[1749671345945,25.84,162.74,162.7,14.46245834]
[1749671346760,14.74678148,162.73,162.64,16.07315834]
[1749671346947,14.46245834,162.69,162.63,18.19239262]
[1749671347155,14.46245834,162.68,162.64,14.46245834]
[1749671347322,14.46245834,162.68,162.63,32.65485096]
[1749671347754,14.46245834,162.68,162.64,14.46245834]
[1749671348644,14.46245834,162.68,162.63,18.19239262]
[1749671348854,14.46245834,162.68,162.63,32.65485096]
[1749671349236,14.46245834,162.68,162.64,14.46245834]
[1749671349469,14.46245834,162.68,162.63,32.65485096]
[1749671349958,14.46245834,162.67,162.63,18.19239262]
[1749671350323,14.46245834,162.68,162.64,14.46245834]
[1749671350563,14.46245834,162.69,162.64,14.46245834]
[1749671350934,26.12432314,162.7,162.63,18.19239262]
[1749671350935,40.30245834,162.7,162.65,14.46245834]
[1749671351469,14.46245834,162.69,162.65,14.46245834]
[1749671351668,14.46245834,162.69,162.63,18.19239262]
[1749671351956,14.46245834,162.69,162.64,14.46245834]
[1749671352668,14.46245834,162.69,162.63,18.19239262]
[1749671352669,14.46245834,162.69,162.65,14.46245834]
[1749671352833,25.84,162.7,162.67,14.46245834]
[1749671353835,25.84,162.7,162.66,14.46245834]
[1749671354244,40.30245834,162.7,162.65,14.46245834]
[1749671354534,14.46245834,162.69,162.64,14.46245834]
[1749671354734,14.46245834,162.68,162.64,14.46245834]
[1749671356335,14.46245834,162.67,162.63,32.65485096]
[1749671357466,14.46245834,162.67,162.63,18.19239262]
[1749671357672,6.1417,162.73,162.66,14.46245834]
[1749671357968,6.1417,162.77,162.72,14.46245834]
[1749671358265,25.84,162.79,162.75,14.46245834]
[1749671358463,1.5943,162.8,162.76,14.46245834]
[1749671358701,0.28432314,162.79,162.72,14.46245834]
[1749671358958,0.28432314,162.79,162.76,14.46245834]
[1749671359262,16.05675834,162.8,162.76,14.46245834]
[1749671359861,0.28432314,162.79,162.76,14.46245834]
[1749671360432,16.05675834,162.8,162.76,14.46245834]
[1749671360638,1.5943,162.8,162.76,14.46245834]
[1749671361040,1.5943,162.8,162.77,14.46245834]
[1749671361242,1.5943,162.8,162.76,24.13044317]
[1749671361869,1.5943,162.8,162.77,1.53466153]
[1749671362070,1.5943,162.8,162.76,24.13044317]
[1749671362276,1.5943,162.8,162.77,1.53466153]
[1749671362461,1.5943,162.8,162.76,24.13044317]
[1749671362660,76.25476631,162.81,162.7,24.13044317]
[1749671362661,26.28432314,162.81,162.77,24.13044317]
[1749671362864,26.0,162.81,162.77,24.13044317]
[1749671363064,26.0,162.81,162.79,24.13044317]
[1749671363256,1.5943,162.84,162.8,24.13044317]
[1749671363460,1.5943,162.84,162.75,26.0]
[1749671363461,30.27214317,162.86,162.82,24.13044317]
[1749671363857,6.1417,162.86,162.83,25.66455501]
[1749671364082,24.13044317,162.87,162.84,1.53394198]
[1749671364277,24.13044317,162.87,162.83,24.13044317]
[1749671364592,24.13044317,162.87,162.84,1.53393109]
[1749671364765,24.13044317,162.87,162.82,24.13044317]
[1749671364973,24.13044317,162.87,162.83,25.66433863]
[1749671365169,24.13044317,162.87,162.84,1.53389528]
[1749671365471,24.13044317,162.87,162.83,24.13044317]
[1749671365472,0.28432314,162.87,162.85,1.5338951]
[1749671365670,0.28432314,162.87,162.83,24.13044317]
[1749671365861,26.28432314,162.85,162.84,1.53389528]
[1749671366222,50.41476631,162.85,162.79,24.13044317]
[1749671366357,50.41476631,162.85,162.8,24.13044317]
[1749671366556,26.28432314,162.85,162.81,24.13044317]
[1749671366761,26.28432314,162.85,162.82,1.53406259]
[1749671366994,26.28432314,162.85,162.83,1.53405969]
[1749671367293,26.28432314,162.85,162.81,24.13044317]
[1749671367457,26.28432314,162.85,162.82,1.53405987]
[1749671367656,26.28432314,162.85,162.81,24.13044317]
[1749671367657,50.41476631,162.85,162.81,24.13044317]
[1749671367856,76.23476631,162.85,162.82,1.53408021]
[1749671368154,76.23476631,162.85,162.81,24.13044317]
[1749671368576,52.10432314,162.85,162.82,1.53408021]
[1749671368781,52.10432314,162.85,162.83,1.53405969]
[1749671369083,52.10432314,162.85,162.81,24.13044317]
[1749671369285,52.10432314,162.85,162.82,1.53405816]
[1749671369581,52.10432314,162.85,162.81,24.13044317]
[1749671369787,52.10432314,162.85,162.82,1.53406621]
[1749671369988,52.10432314,162.85,162.83,1.53406739]
[1749671370189,52.10432314,162.85,162.77,26.0]
[1749671370505,24.41476631,162.84,162.8,24.13044317]
[1749671370869,0.28432314,162.84,162.8,24.13044317]
[1749671371097,75.95044317,162.85,162.81,25.66453284]
[1749671371387,51.82,162.85,162.81,24.13044317]
[1749671371589,51.82,162.85,162.82,1.53404903]
[1749671371889,51.82,162.85,162.83,1.5340285]
[1749671371890,25.82,162.85,162.83,1.5340285]
[1749671372069,25.82,162.85,162.82,24.13044317]
[1749671372390,25.82,162.85,162.83,1.5340285]
[1749671372703,25.82,162.85,162.82,24.13044317]
[1749671372866,25.82,162.85,162.83,24.13044317]
[1749671373066,25.82,162.87,162.84,24.13044317]
[1749671373283,25.82,162.87,162.85,1.53386789]
[1749671373590,26.10432314,162.88,162.84,24.13044317]
[1749671373795,26.10432314,162.88,162.85,1.53386906]
[1749671374101,26.10432314,162.88,162.84,24.13044317]
[1749671374394,26.10432314,162.88,162.85,1.53372591]
[1749671374703,0.28432314,162.88,162.84,24.13044317]
[1749671374909,50.23476631,162.88,162.85,1.53373566]
[1749671375067,26.10432314,162.88,162.83,24.13044317]
[1749671375270,50.23476631,162.88,162.84,1.53377927]
[1749671375469,50.23476631,162.88,162.85,1.53377909]
[1749671375700,24.13044317,162.87,162.83,24.13044317]
[1749671375876,24.13044317,162.86,162.84,1.53386277]
[1749671376085,24.41476631,162.86,162.82,24.13044317]
[1749671376266,24.41476631,162.86,162.83,1.53392471]
[1749671376591,24.41476631,162.86,162.84,1.53389374]
[1749671376764,24.41476631,162.86,162.82,24.13044317]
[1749671376971,24.41476631,162.86,162.79,27.504]
[1749671377179,24.41476631,162.86,162.82,24.13044317]
[1749671377386,24.41476631,162.86,162.83,1.53389444]
[1749671377575,24.41476631,162.86,162.84,1.53386294]
[1749671377778,24.41476631,162.86,162.85,1.53385507]
[1749671377982,0.28432314,162.86,162.85,1.53385489]
[1749671378487,0.28432314,162.86,162.82,24.13044317]
[1749671378696,0.28432314,162.86,162.83,1.53383233]
[1749671378882,0.28432314,162.86,162.84,1.53383215]
[1749671379070,0.28432314,162.86,162.82,24.13044317]
[1749671379270,0.28432314,162.86,162.83,1.53383197]
[1749671379486,0.28432314,162.86,162.84,1.53383197]
[1749671379793,0.28432314,162.86,162.82,24.13044317]
[1749671380090,24.41476631,162.86,162.82,24.13044317]
[1749671380669,0.28432314,162.86,162.82,24.13044317]
[1749671381086,24.41476631,162.86,162.82,24.13044317]
[1749671381284,14.75280784,162.86,162.82,14.4684847]
[1749671381692,14.75280784,162.86,162.79,27.504]
[1749671381894,14.75280784,162.86,162.82,14.4684847]
[1749671382401,14.75280784,162.86,162.79,27.504]
[1749671382570,14.75280784,162.86,162.79,26.0]
[1749671382773,14.75280784,162.86,162.81,14.4684847]
[1749671383818,14.4684847,162.83,162.76,5.82]
[1749671383978,14.4684847,162.83,162.78,14.4684847]
[1749671384785,14.4684847,162.82,162.77,14.4684847]
[1749671385096,14.4684847,162.82,162.72,33.26029513]
[1749671385097,14.4684847,162.81,162.76,14.4684847]
[1749671385295,14.4684847,162.81,162.7,13.7077]
[1749671385296,14.4684847,162.79,162.7,13.7077]
[1749671385505,14.4684847,162.78,162.73,14.4684847]
[1749671386092,14.4684847,162.79,162.74,14.4684847]
[1749671387299,14.4684847,162.79,162.7,33.8877]
[1749671387480,14.4684847,162.78,162.73,14.4684847]
[1749671387999,14.4684847,162.78,162.7,33.8877]
[1749671388200,14.4684847,162.78,162.73,14.4684847]
[1749671389888,14.4684847,162.79,162.74,14.4684847]
[1749671390485,14.4684847,162.79,162.7,33.8877]
[1749671390486,14.4684847,162.77,162.7,27.5544]
[1749671390686,14.4684847,162.77,162.72,14.4684847]
[1749671391209,14.4684847,162.76,162.72,14.4684847]
[1749671391785,14.4684847,162.77,162.72,14.4684847]
[1749671393331,14.75280784,162.79,162.7,27.5544]
[1749671393482,19.07613357,162.79,162.71,14.4684847]
[1749671393813,14.4684847,162.76,162.72,14.4684847]
[1749671394404,26.28432314,162.77,162.72,14.4684847]
[1749671394611,14.4684847,162.76,162.72,14.4684847]
[1749671395875,40.4684847,162.76,162.72,14.4684847]
[1749671396708,14.4684847,162.74,162.69,14.4684847]
[1749671397920,14.4684847,162.73,162.69,14.4684847]
[1749671398414,14.4684847,162.72,162.68,14.4684847]
[1749671398908,14.4684847,162.73,162.68,14.4684847]
[1749671400099,0.28432314,162.71,162.63,105.49239262]
[1749671400299,24.85651043,162.77,162.65,26.0]
[1749671400300,6.0647,162.77,162.65,26.0]
[1749671400601,14.75280784,162.76,162.67,26.0]
[1749671400831,14.75280784,162.76,162.71,14.4684847]
[1749671401019,14.4684847,162.75,162.71,14.4684847]
[1749671401336,14.75280784,162.76,162.71,14.4684847]
[1749671401501,14.75280784,162.74,162.67,26.0]
[1749671401702,14.4684847,162.72,162.67,14.4684847]
[1749671401898,0.28432314,162.75,162.7,14.4684847]
[1749671402103,0.28432314,162.75,162.71,14.4684847]
[1749671402624,14.75280784,162.75,162.7,14.4684847]
[1749671402840,0.28432314,162.76,162.72,14.4684847]
[1749671403036,20.5331847,162.77,162.73,14.4684847]
[1749671403248,6.0647,162.77,162.73,14.4684847]
[1749671403527,20.5331847,162.77,162.72,14.4684847]
[1749671403829,14.4684847,162.76,162.71,14.4684847]
[1749671404127,14.4684847,162.76,162.72,14.4684847]
[1749671404427,41.8709847,162.78,162.73,14.4684847]
[1749671404633,14.4684847,162.77,162.72,14.4684847]
[1749671405121,14.4684847,162.76,162.72,14.4684847]
[1749671405516,14.75280784,162.77,162.72,14.4684847]
[1749671406935,14.75280784,162.77,162.73,14.4684847]
[1749671408312,0.28432314,162.77,162.73,14.4684847]
[1749671408722,14.75280784,162.77,162.73,14.4684847]
[1749671409911,1.5825,162.78,162.76,14.4684847]
[1749671410110,32.1489,162.81,162.77,14.4684847]
[1749671410412,6.1489,162.81,162.78,14.4684847]
[1749671410722,0.28432314,162.81,162.77,14.4684847]
[1749671410915,15.9892847,162.82,162.78,14.4684847]
[1749671411128,15.9892847,162.82,162.69,20.29201043]
[1749671411129,40.61064627,162.79,162.69,9.07205829]
[1749671411320,14.61064627,162.77,162.72,14.4684847]
[1749671411517,0.14216157,162.77,162.73,14.4684847]
[1749671412910,0.14216157,162.77,162.74,14.4684847]
[1749671413220,0.14216157,162.8,162.76,14.4684847]
[1749671413414,0.14216157,162.8,162.77,14.4684847]
[1749671413415,26.08432314,162.8,162.77,14.4684847]
[1749671413618,15.9892847,162.82,162.77,14.4684847]
[1749671413812,25.8,162.81,162.77,14.4684847]
[1749671414012,25.8,162.81,162.72,40.4684847]
[1749671414227,14.4684847,162.81,162.76,14.4684847]
[1749671414427,40.2684847,162.81,162.76,14.4684847]
[1749671414631,25.8,162.81,162.77,14.4684847]
[1749671415210,0.28432314,162.81,162.77,14.4684847]
[1749671415409,14.75280784,162.81,162.76,14.4684847]
[1749671417615,0.28432314,162.81,162.76,14.4684847]
[1749671417816,14.75280784,162.81,162.76,14.4684847]
[1749671419812,14.4684847,162.8,162.75,14.4684847]
[1749671420035,14.4684847,162.8,162.76,14.4684847]
[1749671421733,26.08432314,162.81,162.76,14.4684847]
[1749671421941,40.55280784,162.81,162.76,14.4684847]
[1749671422214,14.4684847,162.8,162.75,14.4684847]
[1749671422638,26.08432314,162.81,162.75,14.4684847]
[1749671422836,0.28432314,162.78,162.69,96.37205829]
[1749671423045,14.75280784,162.76,162.7,1.53468479]
[1749671423222,14.4684847,162.74,162.71,1.53484464]
[1749671423554,14.4684847,162.73,162.68,14.4684847]
[1749671423714,14.4684847,162.72,162.69,1.53488245]
[1749671423918,0.28432314,162.73,162.7,1.53495803]
[1749671424138,14.75280784,162.73,162.71,1.53495614]
[1749671424333,14.75280784,162.73,162.68,14.4684847]
[1749671424534,14.4684847,162.7,162.69,1.53497086]
[1749671424717,14.4684847,162.7,162.65,14.4684847]
[1749671424913,14.4684847,162.69,162.65,14.4684847]
[1749671425118,14.4684847,162.69,162.66,1.53523418]
[1749671425343,0.28432314,162.71,162.67,1.53523418]
[1749671425344,14.75280784,162.71,162.67,1.53523418]
[1749671425544,14.75280784,162.71,162.68,1.53528972]
[1749671425844,14.75280784,162.71,162.66,14.4684847]
[1749671426305,0.28432314,162.71,162.67,14.4684847]
[1749671426430,0.28432314,162.72,162.68,14.4684847]
[1749671426617,14.75280784,162.72,162.67,14.4684847]
[1749671429833,14.4684847,162.71,162.67,14.4684847]
[1749671430553,14.75280784,162.72,162.67,20.61580865]
[1749671431058,0.28432314,162.72,162.67,20.6158014]
[1749671431444,40.2684847,162.73,162.68,14.4684847]
[1749671431738,25.8,162.73,162.69,14.4684847]
[1749671432059,14.4684847,162.77,162.72,14.4684847]
[1749671432265,6.0856,162.78,162.74,14.4684847]
[1749671432567,20.5540847,162.78,162.73,14.4684847]
[1749671432932,6.0856,162.78,162.75,14.4684847]
[1749671433161,25.8,162.79,162.75,14.4684847]
[1749671433461,40.2684847,162.79,162.74,14.4684847]
[1749671433629,44.92838807,162.8,162.75,14.4684847]
[1749671433828,27.3721,162.8,162.76,14.4684847]
[1749671434046,16.32490784,162.8,162.76,14.4684847]
[1749671434233,16.32490784,162.8,162.75,14.4684847]
[1749671436041,16.32490784,162.8,162.75,20.61285354]
[1749671436552,16.32490784,162.8,162.75,14.4684847]
[1749671437061,42.12490784,162.8,162.75,14.4684847]
[1749671438033,14.4684847,162.78,162.73,6.14506205]
[1749671438263,14.4684847,162.79,162.74,14.4684847]
[1749671439664,14.4684847,162.79,162.74,20.61317047]
[1749671439964,42.12490784,162.8,162.75,14.4684847]
[1749671440549,42.12490784,162.8,162.74,6.14468577]
[1749671440763,42.12490784,162.8,162.75,14.4684847]
[1749671441298,27.65642314,162.8,162.75,6.14426504]
[1749671441435,27.65642314,162.8,162.76,14.4684847]
[1749671441856,27.65642314,162.8,162.75,6.14426504]
[1749671442067,27.65642314,162.8,162.76,14.4684847]
[1749671442765,27.65642314,162.8,162.77,14.4684847]
[1749671443259,27.65642314,162.8,162.76,14.4684847]
[1749671443461,27.65642314,162.8,162.76,20.61240909]
[1749671444748,27.65642314,162.8,162.76,14.4684847]
[1749671445349,25.8,162.79,162.77,14.4684847]
[1749671447056,26.08432314,162.8,162.77,14.4684847]
[1749671447444,26.08432314,162.8,162.73,6.1451484]
[1749671448069,26.08432314,162.8,162.76,14.4684847]
[1749671448647,0.28432314,162.8,162.76,14.4684847]
[1749671448857,26.08432314,162.8,162.76,14.4684847]
[1749671449059,40.55280784,162.8,162.76,14.4684847]
[1749671449442,14.75280784,162.79,162.72,6.14552605]
[1749671449673,14.75280784,162.79,162.74,14.4684847]
[1749671450060,14.75280784,162.79,162.75,14.4684847]
[1749671451355,14.75280784,162.79,162.73,6.14488563]
[1749671451555,14.4684847,162.76,162.7,13.71802416]
[1749671451753,14.4684847,162.76,162.72,14.4684847]
[1749671452176,14.4684847,162.76,162.7,6.14616587]
[1749671452383,14.4684847,162.74,162.69,20.61500536]
[1749671452668,14.4684847,162.74,162.7,14.4684847]
[1749671454076,14.4684847,162.74,162.69,20.61500536]
[1749671454273,14.4684847,162.75,162.7,14.4684847]
[1749671456485,14.4684847,162.75,162.7,20.61476149]
[1749671457781,14.4684847,162.75,162.7,14.4684847]
[1749671458265,14.4684847,162.75,162.7,20.61470418]
[1749671458856,14.4684847,162.75,162.7,6.14621948]
[1749671459083,14.4684847,162.75,162.7,20.61470418]
[1749671459583,14.4684847,162.75,162.7,14.4684847]
[1749671461263,14.4684847,162.71,162.67,14.4684847]
[1749671461582,14.4684847,162.72,162.67,14.4684847]
[1749671461950,14.4684847,162.72,162.67,20.61587313]
[1749671462660,66.2684847,162.73,162.68,14.4684847]
[1749671464054,14.4684847,162.72,162.67,6.14738843]
[1749671464254,14.4684847,162.72,162.68,16.00368928]
[1749671464470,14.4684847,162.71,162.67,14.4684847]
[1749671464664,14.4684847,162.71,162.68,1.53522022]
[1749671464865,14.4684847,162.71,162.67,14.4684847]
[1749671465066,14.4684847,162.71,162.68,1.53518315]
[1749671465280,14.4684847,162.7,162.65,20.61649476]
[1749671465484,0.28432314,162.72,162.62,1.5631]
[1749671465485,14.4684847,162.68,162.66,1.53529959]
[1749671465670,33.54461827,162.72,162.6,35.74647847]
[1749671465671,14.4684847,162.67,162.63,14.4684847]
[1749671465981,14.4684847,162.68,162.64,1.53546689]
[1749671466180,14.4684847,162.67,162.63,14.4684847]
[1749671466386,14.4684847,162.67,162.64,1.53547057]
[1749671466584,14.4684847,162.67,162.65,1.53547057]
[1749671466791,14.4684847,162.67,162.66,1.53547057]
[1749671467083,14.4684847,162.67,162.66,1.53548624]
[1749671467281,14.4684847,162.67,162.66,1.53552398]
[1749671467489,16.40196941,162.67,162.66,1.53567166]
[1749671467866,16.40196941,162.67,162.58,14.4684847]
[1749671467867,0.42648471,162.66,162.58,14.4684847]
[1749671468190,14.4684847,162.63,162.58,14.4684847]
[1749671468886,14.4684847,162.62,162.57,14.4684847]
[1749671469875,14.4684847,162.61,162.56,14.4684847]
[1749671470370,0.28432314,162.63,162.56,14.4684847]
[1749671470560,14.4684847,162.61,162.56,14.4684847]
[1749671470988,14.4684847,162.6,162.54,1.6359]
[1749671471178,26.0,162.62,162.52,5.8]
[1749671471179,14.4684847,162.58,162.52,5.8]
[1749671471381,14.4684847,162.58,162.53,14.4684847]
[1749671472697,14.4684847,162.58,162.54,14.4684847]
[1749671472898,14.4684847,162.59,162.54,14.4684847]
[1749671475062,14.4684847,162.58,162.54,14.4684847]
[1749671475689,14.4684847,162.58,162.52,11.95295569]
[1749671475889,14.4684847,162.56,162.52,5.8]
[1749671476077,14.4684847,162.56,162.52,14.4684847]
[1749671476291,14.4684847,162.56,162.49,26.0]
[1749671476292,14.4684847,162.56,162.51,14.4684847]
[1749671477489,14.4684847,162.53,162.48,14.4684847]
[1749671477680,14.4684847,162.52,162.47,14.4684847]
[1749671477881,14.4684847,162.51,162.44,6.1559844]
[1749671478099,14.4684847,162.51,162.46,14.4684847]
[1749671478392,14.4684847,162.53,162.49,14.4684847]
[1749671478893,14.75280784,162.54,162.49,14.4684847]
[1749671479279,14.4684847,162.52,162.47,14.4684847]
[1749671479707,14.4684847,162.52,162.48,14.4684847]
[1749671479868,14.4684847,162.53,162.48,14.4684847]
[1749671480269,14.4684847,162.53,162.46,6.1553117]
[1749671480468,14.4684847,162.53,162.48,14.4684847]
[1749671480684,14.4684847,162.52,162.44,6.15611918]
[1749671480889,14.4684847,162.52,162.47,14.4684847]
[1749671481908,1.6024,162.53,162.47,14.4684847]
[1749671482199,1.6024,162.57,162.52,14.4684847]
[1749671482420,6.0042,162.59,162.55,14.4684847]
[1749671482634,23.78472388,162.63,162.58,14.4684847]
[1749671482923,6.2297,162.63,162.58,14.4684847]
[1749671483420,20.6981847,162.63,162.58,14.4684847]
[1749671483632,6.2297,162.63,162.59,14.4684847]
[1749671483934,20.6981847,162.63,162.58,14.4684847]
[1749671484127,14.4684847,162.62,162.54,26.0]